[Event "4th Baskent University Open 2019"]
[Site "Ankara"]
[Date "2019.06.17"]
[Round "1"]
[White "Iskandarov, Misratdin"]
[Black "Kuruz, Yusuf"]
[Result "1-0"]
[ECO "A31"]
[WhiteElo "2497"]
[BlackElo "1876"]
[Annotator "RC"]
[PlyCount "79"]
[EventDate "2019.06.18"]
[EventType "swiss"]
[EventCountry "TUR"]
[SourceTitle "playchess.com"]
[Source "ChessBase"]
[SourceQuality "1"]
[TimeControl "5400+30"]

1. c4 Nf6 2. Nf3 c5 3. Nc3 Nc6 4. g3 d6 5. Bg2 Bd7 6. O-O g6 7. d4 cxd4 8. Nxd4 Bg7 9. Nxc6 Bxc6 10. e4 O-O 11. Be3 a5 12. Rc1 Nd7 13. Qe2 Nc5 14. Rfd1 Qb6 15. f4 a4 16. Qf2 Ra5 17. e5 Bxg2 18. Qxg2 dxe5 19. fxe5 Qe6 20. Rd5 b6 21. Re1 h5 22. Nb5 Rc8 23. Bd2 Rxb5 24. cxb5 Qg4 25. Qe2 Qh3 {[%emt 1:31:19]} 26. Bg5 {[%emt 0:58:00]} Qe6 {[%emt 0:00:06]} 27. Red1 {[%emt 0:02:30]} Kh7 {[%emt 0:00:12]} 28. Qf3 {[%emt 0:05:30]} Bxe5 {[%emt 0:02:06]} 29. Rxe5 {[%emt 0:01:30]} Qxe5 {[%emt 0:00:30]} 30. Qxf7+ {[%emt 0:02:30]} Qg7 {[%emt 0:01:37]} 31. Qxe7 {[%emt 0:00:30]} Qxe7 {[%emt 0:00:30]} 32. Bxe7 {[%emt 0:00:00]} Kg7 {[%emt 0:04:09]} 33. Bd8 {[%emt 0:01:00]} Ne4 {[%emt 0:02:18]} 34. Bxb6 {[%emt 0:00:30]} Rc2 {[%emt 0:00:16]} 35. Bd4+ {[%emt 0:01:30]} Kf7 {[%emt 0:00:30]} 36. b6 {[%emt 0:00:30]} Nd6 {[%emt 0:00:12]} 37. Bc3 {[%emt 0:05:30]} a3 {[%emt 0:01:15]} 38. bxa3 {[%emt 0:00:30]} Rxc3 {[%emt 0:02:42]} 39. Rxd6 {[%emt 0:00:30]} Rc2 {[%emt 0:00:30]} 40. Rd4 {[%emt 0:00:30]} 1-0

[Event "4th Baskent University Open 2019"]
[Site "Ankara"]
[Date "2019.06.17"]
[Round "1"]
[White "Mammadov, Zaur"]
[Black "Saridag, Omer Melih"]
[Result "1-0"]
[ECO "B01"]
[WhiteElo "2428"]
[BlackElo "1870"]
[Annotator "RC"]
[PlyCount "139"]
[EventDate "2019.06.18"]
[EventType "swiss"]
[EventCountry "TUR"]
[SourceTitle "playchess.com"]
[Source "ChessBase"]
[SourceQuality "1"]
[TimeControl "5400+30"]

1. e4 d5 2. exd5 Qxd5 3. Nc3 Qa5 4. d4 Nf6 5. Bc4 Bg4 6. Nf3 Nc6 7. Bb5 O-O-O 8. Bxc6 bxc6 9. h3 Bxf3 10. Qxf3 Qa6 11. Ne2 e6 12. O-O Qc4 13. Bf4 Bd6 14. c3 Qd5 15. Qd3 c5 16. Bxd6 Rxd6 17. Nf4 Qc6 18. Qg3 Rg8 19. Nd3 Ne4 20. Qf3 cxd4 21. cxd4 {[%emt 0:51:30]} Nd2 {[%emt 1:37:51]} 22. Qxf7 {[%emt 0:00:30]} Qe8 {[%emt 0:00:30]} 23. Qxe8+ {[%emt 0:00:30]} Rxe8 {[%emt 0:00:09]} 24. Rfd1 {[%emt 0:00:00]} Nc4 {[%emt 0:01:16]} 25. b3 {[%emt 0:04:00]} Na3 {[%emt 0:00:30]} 26. Ne5 {[%emt 0:01:30]} Nc2 {[%emt 0:00:56]} 27. Rac1 {[%emt 0:00:30]} Rxd4 {[%emt 0:01:06]} 28. Rxd4 {[%emt 0:00:00]} Nxd4 {[%emt 0:00:30]} 29. Rc4 {[%emt 0:00:00]} Nf5 {[%emt 0:00:30]} 30. Ra4 {[%emt 0:00:30]} Kb7 {[%emt 0:00:30]} 31. Rb4+ {[%emt 0:02:30]} Ka8 {[%emt 0:00:42]} 32. Nd3 {[%emt 0:00:30]} Rd8 {[%emt 0:00:30]} 33. Nc5 {[%emt 0:00:30]} Rd6 {[%emt 0:00:38]} 34. Re4 {[%emt 0:02:30]} Nd4 {[%emt 0:00:30]} 35. Kh2 {[%emt 0:00:30]} a5 {[%emt 0:00:40]} 36. Rf4 {[%emt 0:01:30]} Kb8 {[%emt 0:00:30]} 37. Rf8+ {[%emt 0:00:30]} Ka7 {[%emt 0:00:30]} 38. Rf7 {[%emt 0:01:30]} Rc6 {[%emt 0:00:30]} 39. Ne4 {[%emt 0:00:30]} Nf5 {[%emt 0:00:19]} 40. g4 {[%emt 0:00:30]} Nd4 {[%emt 0:00:50]} 41. Rxg7 {[%emt 0:00:30]} Rc2 {[%emt 0:00:00]} 42. Rxh7 {[%emt 0:01:30]} Re2 {[%emt 0:00:11]} 43. Ng5 {[%emt 0:01:30]} Rxf2+ {[%emt 0:00:54]} 44. Kg3 {[%emt 0:00:30]} Rxa2 {[%emt 0:00:00]} 45. Rxc7+ {[%emt 0:01:30]} Kb6 {[%emt 0:00:00]} 46. Rc8 {[%emt 0:00:00]} Kb7 {[%emt 0:00:15]} 47. Rc4 {[%emt 0:00:00]} Nxb3 {[%emt 0:01:02]} 48. Nxe6 {[%emt 0:00:30]} Nd2 {[%emt 0:00:30]} 49. Rf4 {[%emt 0:00:30]} Ra3+ {[%emt 0:01:12]} 50. Kg2 {[%emt 0:00:30]} Re3 {[%emt 0:00:30]} 51. Nd4 {[%emt 0:04:30]} Re4 {[%emt 0:00:39]} 52. Rxe4 {[%emt 0:02:30]} Nxe4 {[%emt 0:00:08]} 53. h4 {[%emt 0:00:00]} Kc7 {[%emt 0:00:54]} 54. Kf3 {[%emt 0:00:00]} Nd6 {[%emt 0:00:16]} 55. Kf4 {[%emt 0:01:30]} Kd7 {[%emt 0:00:36]} 56. h5 {[%emt 0:00:30]} Ke8 {[%emt 0:00:30]} 57. Ke5 {[%emt 0:00:00]} Nf7+ {[%emt 0:00:41]} 58. Kf6 {[%emt 0:00:00]} Kf8 {[%emt 0:00:18]} 59. g5 {[%emt 0:00:30]} Kg8 {[%emt 0:00:48]} 60. g6 {[%emt 0:02:30]} Nd6 {[%emt 0:00:49]} 61. h6 {[%emt 0:00:00]} Ne4+ {[%emt 0:00:01]} 62. Ke7 {[%emt 0:00:00]} Ng5 {[%emt 0:00:17]} 63. Ne6 {[%emt 0:00:30]} Nh7 {[%emt 0:00:45]} 64. Nc5 {[%emt 0:00:30]} Nf8 {[%emt 0:00:24]} 65. Kf6 {[%emt 0:01:30]} Nd7+ {[%emt 0:00:46]} 66. Kf5 {[%emt 0:00:30]} Nb8 {[%emt 0:00:13]} 67. Na4 {[%emt 0:00:30]} Nc6 {[%emt 0:00:16]} 68. Nb6 {[%emt 0:00:00]} Kh8 {[%emt 0:00:27]} 69. Nd5 {[%emt 0:00:00]} Nb8 {[%emt 0:00:44]} 70. Ke4 {[%emt 0:00:30]} 1-0

[Event "4th Baskent University Open 2019"]
[Site "Ankara"]
[Date "2019.06.17"]
[Round "1"]
[White "Can, Isik"]
[Black "Guler, Muhammed Talha"]
[Result "1-0"]
[ECO "B12"]
[WhiteElo "2379"]
[BlackElo "1808"]
[Annotator "RC"]
[PlyCount "59"]
[EventDate "2019.06.18"]
[EventType "swiss"]
[EventCountry "TUR"]
[SourceTitle "playchess.com"]
[Source "ChessBase"]
[SourceQuality "1"]
[TimeControl "5400+30"]

1. e4 c6 2. d4 d5 3. e5 c5 4. dxc5 e6 5. a3 Nd7 6. Nf3 Nxc5 7. b4 Ne4 8. Bd3 f5 9. O-O a5 10. bxa5 Bc5 11. Nbd2 Ne7 12. Nb3 O-O 13. Bd2 Nc6 14. Nxc5 Nxc5 15. Bb4 Nxd3 16. Bxf8 Ndxe5 17. Nxe5 Nxe5 18. Bb4 Qh4 19. Rb1 Bd7 20. Bc3 Qf4 21. Rxb7 {[%emt 1:18:30]} Bc6 {[%emt 1:09:30]} 22. Bxe5 {[%emt 0:00:30]} Qxe5 {[%emt 0:00:30]} 23. Rb6 {[%emt 0:00:30]} Qc7 {[%emt 0:00:30]} 24. Qd2 {[%emt 0:00:30]} e5 {[%emt 0:02:30]} 25. Qc3 {[%emt 0:00:30]} Rc8 {[%emt 0:00:00]} 26. Rfb1 {[%emt 0:00:00]} Qd7 {[%emt 0:02:00]} 27. Qxe5 {[%emt 0:00:00]} d4 {[%emt 0:00:30]} 28. a6 {[%emt 0:00:30]} Re8 {[%emt 0:00:30]} 29. Qxe8+ {[%emt 0:00:30]} Qxe8 {[%emt 0:01:30]} 30. Rb8 {[%emt 0:00:30]} 1-0

[Event "4th Baskent University Open 2019"]
[Site "Ankara"]
[Date "2019.06.17"]
[Round "1"]
[White "Koksal, Ege"]
[Black "Kavri, Yusuf Eren"]
[Result "1-0"]
[ECO "D60"]
[WhiteElo "2363"]
[BlackElo "1719"]
[Annotator "RC"]
[PlyCount "101"]
[EventDate "2019.06.18"]
[EventType "swiss"]
[EventCountry "TUR"]
[SourceTitle "playchess.com"]
[Source "ChessBase"]
[SourceQuality "1"]
[TimeControl "5400+30"]

1. d4 Nf6 2. c4 e6 3. Nf3 d5 4. Nc3 Be7 5. Bg5 O-O 6. e3 Nbd7 7. c5 c6 8. Be2 b6 9. b4 bxc5 10. bxc5 h6 11. Bh4 Qa5 12. Qd2 Re8 13. O-O Ba6 14. Rfc1 Bd8 15. Bg3 Bxe2 16. Qxe2 Bc7 17. e4 Bxg3 18. hxg3 dxe4 19. Nxe4 Nxe4 20. Qxe4 Qa4 21. Qd3 Red8 22. Qb3 Qa6 23. Rd1 Rab8 24. Qc2 Qa5 25. g4 Rb4 26. Rab1 Rdb8 27. Rb3 Qa4 28. Rdb1 R8b5 29. g5 hxg5 30. Nxg5 {[%emt 0:54:00]} Nf6 {[%emt 1:34:37]} 31. Nf3 {[%emt 0:00:30]} Nd5 {[%emt 0:02:43]} 32. g3 {[%emt 0:00:30]} Rxb3 {[%emt 0:02:13]} 33. axb3 {[%emt 0:01:30]} Qb4 {[%emt 0:00:30]} 34. Kg2 {[%emt 0:00:30]} a5 {[%emt 0:01:27]} 35. Rh1 {[%emt 0:02:30]} Nf6 {[%emt 0:00:51]} 36. Ra1 {[%emt 0:04:30]} Qxb3 {[%emt 0:03:26]} 37. Qxb3 {[%emt 0:00:30]} Rxb3 {[%emt 0:00:30]} 38. Rxa5 {[%emt 0:00:00]} Nd5 {[%emt 0:00:56]} 39. Ne5 {[%emt 0:02:00]} Rb8 {[%emt 0:01:33]} 40. Ra7 {[%emt 0:01:30]} f6 {[%emt 0:00:57]} 41. Nxc6 {[%emt 0:00:30]} Rc8 {[%emt 0:00:00]} 42. Ra6 {[%emt 0:02:30]} Kf7 {[%emt 0:00:23]} 43. Kf3 {[%emt 0:00:30]} Ne7 {[%emt 0:00:46]} 44. Nxe7 {[%emt 0:00:30]} Kxe7 {[%emt 0:00:01]} 45. Ra7+ {[%emt 0:00:00]} Kf8 {[%emt 0:00:45]} 46. Ke4 {[%emt 0:01:00]} e5 {[%emt 0:00:35]} 47. Rd7 {[%emt 0:00:00]} exd4 {[%emt 0:01:00]} 48. Kxd4 {[%emt 0:00:00]} g6 {[%emt 0:00:07]} 49. Kd5 {[%emt 0:00:30]} Ke8 {[%emt 0:00:25]} 50. Rh7 {[%emt 0:00:30]} Rd8+ {[%emt 0:00:36]} 51. Ke4 {[%emt 0:00:30]} 1-0

[Event "4th Baskent University Open 2019"]
[Site "Ankara"]
[Date "2019.06.17"]
[Round "1"]
[White "Sade, Defne"]
[Black "Maghalashvili, Davit"]
[Result "0-1"]
[ECO "B51"]
[WhiteElo "1943"]
[BlackElo "2500"]
[Annotator "RC"]
[PlyCount "80"]
[EventDate "2019.06.18"]
[EventType "swiss"]
[EventCountry "TUR"]
[SourceTitle "playchess.com"]
[Source "ChessBase"]
[SourceQuality "1"]
[TimeControl "5400+30"]

1. e4 c5 2. Nf3 d6 3. Bb5+ Nc6 4. O-O Bd7 5. Re1 a6 6. Bxc6 Bxc6 7. d4 cxd4 8. Nxd4 Nf6 9. Nxc6 bxc6 10. Nc3 Nd7 11. Be3 e6 12. Qf3 Be7 13. Qg3 O-O 14. Rad1 Ne5 15. Bd4 Ng6 16. Na4 e5 17. Bb6 Qc8 18. Ba5 Rb8 19. Nb6 Qe6 20. Qc3 Nf4 21. Nc4 Qg4 22. Qf3 Qe6 23. Qc3 Rb7 24. Rd2 f6 25. g3 Nh3+ 26. Kg2 {[%emt 1:23:00]} Ng5 {[%emt 1:07:00]} 27. b3 {[%emt 0:08:09]} d5 {[%emt 0:01:30]} 28. exd5 {[%emt 0:01:02]} cxd5 {[%emt 0:00:30]} 29. h4 {[%emt 0:07:58]} Ne4 {[%emt 0:00:30]} 30. Rxe4 {[%emt 0:00:46]} dxe4 {[%emt 0:00:30]} 31. Ne3 {[%emt 0:00:30]} Rc8 {[%emt 0:00:30]} 32. Qa1 {[%emt 0:00:22]} Bc5 {[%emt 0:01:30]} 33. c4 {[%emt 0:02:32]} Rd7 {[%emt 0:02:30]} 34. Nd5 {[%emt 0:00:59]} Bd4 {[%emt 0:00:30]} 35. Bc3 {[%emt 0:00:56]} Rxd5 {[%emt 0:02:30]} 36. cxd5 {[%emt 0:00:12]} Qxd5 {[%emt 0:00:00]} 37. Kh2 {[%emt 0:00:28]} Bxc3 {[%emt 0:01:00]} 38. Qxc3 {[%emt 0:00:30]} Rxc3 {[%emt 0:00:30]} 39. Rxd5 {[%emt 0:00:08]} Rc2 {[%emt 0:00:00]} 40. Ra5 {[%emt 0:01:35]} e3 {[%emt 0:00:00]} 0-1

[Event "4th Baskent University Open 2019"]
[Site "Ankara"]
[Date "2019.06.17"]
[Round "1"]
[White "Konusoglu, Kemal Safa"]
[Black "Arat, Ufuk Sezen"]
[Result "0-1"]
[ECO "A45"]
[WhiteElo "1858"]
[BlackElo "2368"]
[Annotator "RC"]
[PlyCount "92"]
[EventDate "2019.06.18"]
[EventType "swiss"]
[EventCountry "TUR"]
[SourceTitle "playchess.com"]
[Source "ChessBase"]
[SourceQuality "1"]
[TimeControl "5400+30"]

1. d4 Nf6 2. Bf4 d6 3. Nc3 Nh5 4. Bg5 h6 5. Bh4 g5 6. e4 Nf4 7. Bg3 Bg7 8. h4 c5 9. hxg5 hxg5 10. Rxh8+ Bxh8 11. Bxf4 gxf4 12. Qh5 Bxd4 13. Nge2 Be6 14. Nxd4 cxd4 15. Qh8+ Kd7 16. Qxd4 Nc6 17. Qd2 Qa5 18. Bb5 {[%emt 1:14:00]} a6 {[%emt 1:16:00]} 19. Ba4 {[%emt 0:15:25]} Rg8 {[%emt 0:04:40]} 20. f3 {[%emt 0:06:34]} b5 {[%emt 0:10:12]} 21. Bb3 {[%emt 0:00:30]} b4 {[%emt 0:00:30]} 22. Nd5 {[%emt 0:00:38]} Bxd5 {[%emt 0:01:03]} 23. Bxd5 {[%emt 0:00:30]} Ne5 {[%emt 0:00:30]} 24. O-O-O {[%emt 0:00:30]} Qc5 {[%emt 0:00:30]} 25. Kb1 {[%emt 0:00:30]} a5 {[%emt 0:00:30]} 26. Bb3 {[%emt 0:01:48]} Qb5 {[%emt 0:02:50]} 27. Qd4 {[%emt 0:00:25]} Nc6 {[%emt 0:01:44]} 28. Qd2 {[%emt 0:00:12]} Rg7 {[%emt 0:01:01]} 29. Qxf4 {[%emt 0:01:53]} Qe2 {[%emt 0:00:41]} 30. Qd2 {[%emt 0:01:17]} Rxg2 {[%emt 0:00:00]} 31. Qxe2 {[%emt 0:00:52]} Rxe2 {[%emt 0:00:16]} 32. Bxf7 {[%emt 0:00:30]} Ne5 {[%emt 0:00:30]} 33. Bh5 {[%emt 0:00:30]} Rh2 {[%emt 0:00:30]} 34. Bg4+ {[%emt 0:00:30]} Kc6 {[%emt 0:00:30]} 35. b3 {[%emt 0:00:30]} Kb6 {[%emt 0:00:30]} 36. Rf1 {[%emt 0:00:30]} Nc6 {[%emt 0:00:30]} 37. f4 {[%emt 0:00:30]} Nd4 {[%emt 0:00:30]} 38. Bd1 {[%emt 0:00:30]} Nb5 {[%emt 0:00:30]} 39. Kb2 {[%emt 0:00:30]} Kc5 {[%emt 0:00:30]} 40. e5 {[%emt 0:00:30]} dxe5 {[%emt 0:00:30]} 41. fxe5 {[%emt 0:00:30]} Kd4 {[%emt 0:00:30]} 42. Re1 {[%emt 0:00:30]} Nc3 {[%emt 0:00:30]} 43. a3 {[%emt 0:00:30]} Rd2 {[%emt 0:00:30]} 44. Bf3 {[%emt 0:00:30]} bxa3+ {[%emt 0:00:30]} 45. Kxa3 {[%emt 0:00:30]} Rxc2 {[%emt 0:00:30]} 46. b4 {[%emt 0:00:30]} Ra2+ {[%emt 0:00:30]} 0-1

[Event "4th Baskent University Open 2019"]
[Site "Ankara"]
[Date "2019.06.17"]
[Round "1"]
[White "Kaptan, Emre Akin"]
[Black "Pacher, Milan"]
[Result "0-1"]
[ECO "B22"]
[WhiteElo "1798"]
[BlackElo "2396"]
[Annotator "RC"]
[PlyCount "100"]
[EventDate "2019.06.18"]
[EventType "swiss"]
[EventCountry "TUR"]
[SourceTitle "playchess.com"]
[Source "ChessBase"]
[SourceQuality "1"]
[TimeControl "5400+30"]

1. e4 c5 2. c3 d6 3. d4 Nf6 4. dxc5 Nc6 5. cxd6 Nxe4 6. dxe7 Qxd1+ 7. Kxd1 Nxf2+ 8. Ke1 Nxh1 9. exf8=Q+ Rxf8 10. g3 Bg4 11. Bg2 O-O-O 12. Bd2 Rfe8+ 13. Kf1 Ne5 14. Bxh1 Nc4 15. Bf3 h5 16. h3 Rxd2 17. Bxg4+ hxg4 18. Nxd2 Nxd2+ 19. Kf2 Ne4+ 20. Kg2 gxh3+ 21. Nxh3 Rd8 22. Kf3 f5 23. Kf4 Rd2 24. Kxf5 Nxg3+ 25. Kg4 Ne4 26. Rb1 Kd7 27. Nf4 Nc5 28. Kf3 Na4 29. Rg1 Rxb2 30. Rxg7+ Kc6 31. Ne6 Kb6 32. Nd8 Nc5 33. a4 Rb3 34. Ke2 Rxc3 35. a5+ Ka6 36. Rc7 b6 37. Ne6 {[%emt 1:44:38]} Kxa5 {[%emt 0:44:30]} 38. Nxc5 {[%emt 0:00:30]} Rxc5 {[%emt 0:00:30]} 39. Rxa7+ {[%emt 0:00:30]} Kb4 {[%emt 0:00:00]} 40. Ra1 {[%emt 0:00:22]} Kc3 {[%emt 0:02:00]} 41. Rb1 {[%emt 0:03:04]} Re5+ {[%emt 0:00:30]} 42. Kd1 {[%emt 0:00:30]} Rd5+ {[%emt 0:00:30]} 43. Ke2 {[%emt 0:00:30]} b5 {[%emt 0:00:00]} 44. Ke3 {[%emt 0:01:12]} b4 {[%emt 0:00:00]} 45. Rc1+ {[%emt 0:00:30]} Kb2 {[%emt 0:00:30]} 46. Rc8 {[%emt 0:00:30]} b3 {[%emt 0:00:30]} 47. Rb8 {[%emt 0:00:30]} Kc2 {[%emt 0:00:00]} 48. Rc8+ {[%emt 0:00:02]} Kb1 {[%emt 0:00:00]} 49. Rb8 {[%emt 0:00:30]} b2 {[%emt 0:00:30]} 50. Ke4 {[%emt 0:00:30]} Ra5 {[%emt 0:00:30]} 0-1

[Event "4th Baskent University Open 2019"]
[Site "Ankara"]
[Date "2019.06.17"]
[Round "1"]
[White "Bekiragaoglu, Umut"]
[Black "Bagaturov, Giorgi"]
[Result "0-1"]
[ECO "A36"]
[WhiteElo "1795"]
[BlackElo "2422"]
[Annotator "RC"]
[PlyCount "68"]
[EventDate "2019.06.18"]
[EventType "swiss"]
[EventCountry "TUR"]
[SourceTitle "playchess.com"]
[Source "ChessBase"]
[SourceQuality "1"]
[TimeControl "5400+30"]

1. e4 c5 2. Ne2 g6 3. c4 e5 4. g3 Bg7 5. Bg2 Ne7 6. O-O O-O 7. Nbc3 d6 8. d3 Nbc6 9. f4 Be6 10. Be3 Nd4 11. Bxd4 exd4 12. Nd5 Nxd5 13. cxd5 Bd7 14. Qd2 Re8 15. b4 b6 16. Rab1 f5 17. Rfc1 Rc8 18. bxc5 bxc5 19. Rb7 Rc7 {[%emt 1:03:30]} 20. Rcb1 {[%emt 1:25:10]} Rxb7 {[%emt 0:04:30]} 21. Rxb7 {[%emt 0:00:30]} Bc8 {[%emt 0:00:00]} 22. Rxa7 {[%emt 0:04:15]} Qb6 {[%emt 0:03:00]} 23. Qa5 {[%emt 0:02:14]} Qxa5 {[%emt 0:02:30]} 24. Rxa5 {[%emt 0:00:30]} c4 {[%emt 0:00:30]} 25. Ra4 {[%emt 0:00:31]} cxd3 {[%emt 0:01:30]} 26. Nxd4 {[%emt 0:00:05]} d2 {[%emt 0:02:30]} 27. Bf3 {[%emt 0:00:30]} Rxe4 {[%emt 0:00:30]} 28. Ra8 {[%emt 0:01:32]} Bxd4+ {[%emt 0:00:30]} 29. Kg2 {[%emt 0:00:30]} Re8 {[%emt 0:00:30]} 30. Bd1 {[%emt 0:00:30]} Bd7 {[%emt 0:00:30]} 31. Rxe8+ {[%emt 0:00:30]} Bxe8 {[%emt 0:00:30]} 32. Kf3 {[%emt 0:00:00]} Bf7 {[%emt 0:00:00]} 33. Bb3 {[%emt 0:00:00]} d1=Q+ {[%emt 0:01:00]} 34. Bxd1 {[%emt 0:00:08]} Bxd5+ {[%emt 0:00:30]} 0-1

[Event "4th Baskent University Open 2019"]
[Site "Ankara"]
[Date "2019.06.17"]
[Round "1"]
[White "Sahin, Arda"]
[Black "Tugolbaev, Aktan"]
[Result "1-0"]
[ECO "B07"]
[WhiteElo "1710"]
[BlackElo "1179"]
[Annotator "NA RC"]
[PlyCount "57"]
[EventDate "2019.06.18"]
[EventType "swiss"]
[EventCountry "TUR"]
[SourceTitle "playchess.com"]
[Source "ChessBase"]
[SourceQuality "1"]
[TimeControl "5400+30"]

1. d4 Nf6 2. Bf4 g6 3. Nc3 Bg7 4. e4 d6 5. Qd2 O-O 6. O-O-O Nbd7 7. Nf3 c6 8. e5 Ne8 9. h4 h5 10. Be2 b5 11. Kb1 d5 12. Bd3 Nb6 13. Ng5 a5 14. Ne2 Nc7 15. Ng3 b4 16. Qe2 Ne6 17. Nxh5 Nxd4 18. Qe3 Nf5 19. Bxf5 Bxf5 20. Ng3 Qd7 21. Qxb6 Rfb8 22. Qe3 b3 23. axb3 a4 24. e6 axb3 25. exd7 bxc2+ 26. Kc1 Rxb2 27. d8=Q+ Rxd8 28. Nxf5 gxf5 29. Be5 1-0

[Event "4th Baskent University Open 2019"]
[Site "Ankara"]
[Date "2019.06.17"]
[Round "1"]
[White "Kaya, Onur"]
[Black "Yuzer, Murat"]
[Result "1-0"]
[ECO "B06"]
[WhiteElo "1681"]
[BlackElo "1436"]
[Annotator "NA RC"]
[PlyCount "101"]
[EventDate "2019.06.18"]
[EventType "swiss"]
[EventCountry "TUR"]
[SourceTitle "playchess.com"]
[Source "ChessBase"]
[SourceQuality "1"]
[TimeControl "5400+30"]

1. e4 g6 2. d4 Bg7 3. Nc3 d6 4. f4 c6 5. a4 Nd7 6. e5 dxe5 7. dxe5 Nh6 8. Nf3 a5 9. Be3 Ng4 10. Bg1 Qc7 11. h3 Nh6 12. Bc4 Nf8 13. Qe2 Be6 14. O-O-O Bxc4 15. Qxc4 Ne6 16. g4 O-O 17. f5 gxf5 18. g5 Nxg5 19. Nxg5 Qxe5 20. Nf3 Qg3 21. Rf1 b5 22. Qh4 Qxh4 23. Nxh4 Bxc3 24. bxc3 e6 25. Be3 f4 26. Bxf4 Nf5 27. Nxf5 exf5 28. Rhg1+ Kh8 29. axb5 cxb5 30. Bh6 Rg8 31. Rxg8+ Rxg8 32. Rxf5 Rg6 33. Be3 Kg8 34. Rxb5 Ra6 35. Bd4 h6 36. c4 a4 37. c5 Kf8 38. Rb6 Ra8 39. Rxh6 Ke7 40. Rd6 a3 41. Bf6+ Ke8 42. Kb1 a2+ 43. Ka1 Rb8 44. Kxa2 Ra8+ 45. Kb1 Rb8+ 46. Kc1 Kf8 47. Rd8+ Rxd8 48. Bxd8 Ke8 49. Bg5 Kd7 50. h4 Kc6 51. h5 1-0

[Event "4th Baskent University Open 2019"]
[Site "Ankara"]
[Date "2019.06.17"]
[Round "1"]
[White "Samli, Ibrahim"]
[Black "Kocak, Yasin"]
[Result "0-1"]
[ECO "B70"]
[WhiteElo "1671"]
[BlackElo "1342"]
[Annotator "NA RC"]
[PlyCount "68"]
[EventDate "2019.06.18"]
[EventType "swiss"]
[EventCountry "TUR"]
[SourceTitle "playchess.com"]
[Source "ChessBase"]
[SourceQuality "1"]
[TimeControl "5400+30"]

1. e4 c5 2. Nf3 d6 3. d4 cxd4 4. Nxd4 Nf6 5. Nc3 g6 6. Bg5 Bg7 7. Qd2 Qa5 8. f3 O-O 9. h4 Nc6 10. Nb3 Qb6 11. Bxf6 exf6 12. h5 Be6 13. O-O-O f5 14. exf5 Bxf5 15. g4 Be6 16. Bd3 Nb4 17. hxg6 fxg6 18. Na4 Nxa2+ 19. Kb1 Qb4 20. Kxa2 Qxa4+ 21. Kb1 Rxf3 22. Qe2 Bxg4 23. Rdg1 Rg3 24. Qh2 Rxg1+ 25. Rxg1 Qd7 26. Rh1 Be5 27. Qg2 a5 28. Bc4+ Kh8 29. Nd2 Bf5 30. Bd5 Rc8 31. Ne4 Qb5 32. c4 Rxc4 33. Bxc4 Bxe4+ 34. Ka1 Qa4+ 0-1

[Event "4th Baskent University Open 2019"]
[Site "Ankara"]
[Date "2019.06.17"]
[Round "1"]
[White "Gocer, Onur Saygin"]
[Black "Uysal, Nehir"]
[Result "1-0"]
[ECO "C01"]
[WhiteElo "1595"]
[BlackElo "1223"]
[Annotator "NA RC"]
[PlyCount "73"]
[EventDate "2019.06.18"]
[EventType "swiss"]
[EventCountry "TUR"]
[SourceTitle "playchess.com"]
[Source "ChessBase"]
[SourceQuality "1"]
[TimeControl "5400+30"]

1. e4 e6 2. d4 d5 3. exd5 exd5 4. c4 c6 5. Nc3 Nf6 6. Bg5 Be7 7. Nf3 O-O 8. Be2 Ne4 9. Bxe7 Qxe7 10. O-O Re8 11. Re1 Bf5 12. cxd5 Nxc3 13. bxc3 Qa3 14. Bc4 Nd7 15. dxc6 bxc6 16. Qb3 Qxb3 17. axb3 h6 18. h3 Kf8 19. Rxe8+ Kxe8 20. d5 cxd5 21. Bxd5 Rc8 22. Nd4 Bd3 23. Rxa7 Ne5 24. f4 Rd8 25. c4 Nd7 26. Bc6 Ke7 27. Bxd7 Rxd7 28. Nc6+ Kd6 29. Rxd7+ Kxd7 30. Ne5+ Kd6 31. Nxd3 Kc7 32. b4 Kb6 33. b5 f6 34. Nb4 Ka5 35. Nd5 f5 36. h4 h5 37. g3 1-0

[Event "4th Baskent University Open 2019"]
[Site "Ankara"]
[Date "2019.06.17"]
[Round "1"]
[White "Seb, Mesut"]
[Black "Subasi, Fidel"]
[Result "0-1"]
[ECO "A16"]
[WhiteElo "1528"]
[BlackElo "1702"]
[Annotator "NA RC"]
[PlyCount "23"]
[EventDate "2019.06.18"]
[EventType "swiss"]
[EventCountry "TUR"]
[SourceTitle "playchess.com"]
[Source "ChessBase"]
[SourceQuality "1"]
[TimeControl "5400+30"]

1. c4 Nf6 2. Nc3 d5 3. cxd5 Nxd5 4. Nf3 g6 5. e4 Nxc3 6. bxc3 Bg7 7. Bc4 O-O 8. Ba3 a6 9. Qb3 b5 10. Be2 Nd7 11. c4 Bxa1 12. Qd1 0-1

[Event "4th Baskent University Open 2019"]
[Site "Ankara"]
[Date "2019.06.17"]
[Round "1"]
[White "Dizdar, Didem Dilara"]
[Black "Taban, Yagiz"]
[Result "0-1"]
[ECO "A85"]
[WhiteElo "1390"]
[BlackElo "1654"]
[Annotator "NA RC"]
[PlyCount "58"]
[EventDate "2019.06.18"]
[EventType "swiss"]
[EventCountry "TUR"]
[SourceTitle "playchess.com"]
[Source "ChessBase"]
[SourceQuality "1"]
[TimeControl "5400+30"]

1. Nf3 f5 2. c4 Nf6 3. Nc3 e6 4. d4 b6 5. Bg5 Bb7 6. Qc2 Bb4 7. a3 Bxc3+ 8. bxc3 O-O 9. Rd1 Qe8 10. Bxf6 Rxf6 11. d5 e5 12. g3 d6 13. Nh4 g6 14. Bh3 Bc8 15. O-O Na6 16. Kh1 Nc5 17. Bg2 Ba6 18. f4 Bxc4 19. Bf3 Bb3 20. Qc1 Bxd1 21. Rxd1 exf4 22. g4 fxg4 23. Bxg4 Qe3 24. Qxe3 fxe3 25. Nf3 Ne4 26. Be6+ Rxe6 27. dxe6 Nf2+ 28. Kg2 Nxd1 29. Nd4 Nxc3 0-1

[Event "4th Baskent University Open 2019"]
[Site "Ankara"]
[Date "2019.06.17"]
[Round "1"]
[White "Yilmaz, Huseyin"]
[Black "Kanli, Alperen"]
[Result "0-1"]
[ECO "D20"]
[WhiteElo "1375"]
[BlackElo "1737"]
[Annotator "NA RC"]
[PlyCount "84"]
[EventDate "2019.06.18"]
[EventType "swiss"]
[EventCountry "TUR"]
[SourceTitle "playchess.com"]
[Source "ChessBase"]
[SourceQuality "1"]
[TimeControl "5400+30"]

1. d4 d5 2. c4 dxc4 3. Nc3 a6 4. a4 Nc6 5. e3 e5 6. Bxc4 exd4 7. exd4 Nxd4 8. Be3 Be6 9. Bxe6 Nxe6 10. Qf3 c6 11. Rd1 Qc7 12. Nge2 Nf6 13. O-O Bd6 14. g3 O-O 15. Nd4 Nxd4 16. Bxd4 Nd7 17. Qg4 Be5 18. Be3 Nf6 19. Qc4 Rfd8 20. Rxd8+ Rxd8 21. b4 b5 22. axb5 axb5 23. Qc5 Nd7 24. Nxb5 cxb5 25. Qxb5 Rb8 26. Qa4 Nb6 27. Qb3 Qc4 28. Qxc4 Nxc4 29. Bc5 Bb2 30. Re1 f6 31. Re7 Ba3 32. Re4 Ne5 33. f4 Nc6 34. Re6 Nxb4 35. Ba7 Rb7 36. Bc5 Nc2 37. Re8+ Kf7 38. Rf8+ Kg6 39. Rc8 Rb1+ 40. Kg2 Ne1+ 41. Kh3 Rc1 42. Re8 Bxc5 0-1

[Event "4th Baskent University Open 2019"]
[Site "Ankara"]
[Date "2019.06.17"]
[Round "1"]
[White "Ilek, Kadir Bertan"]
[Black "Sarginalp, Tuna"]
[Result "1/2-1/2"]
[ECO "B52"]
[WhiteElo "1333"]
[BlackElo "1630"]
[Annotator "NA RC"]
[PlyCount "62"]
[EventDate "2019.06.18"]
[EventType "swiss"]
[EventCountry "TUR"]
[SourceTitle "playchess.com"]
[Source "ChessBase"]
[SourceQuality "1"]
[TimeControl "5400+30"]

1. e4 c5 2. Nf3 d6 3. Bb5+ Bd7 4. Bxd7+ Qxd7 5. O-O Nc6 6. c3 Nf6 7. Re1 e6 8. d4 cxd4 9. cxd4 d5 10. e5 Ne4 11. Nc3 Nxc3 12. bxc3 Rc8 13. Qd3 Be7 14. Bg5 Bxg5 15. Nxg5 h6 16. Nh3 Ne7 17. f4 Rc4 18. Rab1 Qc6 19. Rb3 Kd7 20. Reb1 b6 21. Nf2 Ra4 22. Qd2 Rc8 23. Nd1 Qb7 24. Ne3 Qa6 25. R1b2 Nc6 26. f5 Na5 27. Rb4 Rxb4 28. fxe6+ fxe6 29. Rxb4 Rf8 30. Rb1 Nc4 31. Qe2 Qc8 1/2-1/2